fUSD/lending_fUSD_20240327
["ID","MTS","AMOUNT","RATE_DAILY","PERIOD"]
[320793555,1711560718281,-4848.10637665,0.000509,120]
[320793556,1711560718311,-4848.10637665,0.000509,120]
[320793557,1711560718343,-160.0,0.00050901,120]
[320793558,1711560718373,-1000.0,0.00050958,120]
[320793559,1711560718403,-1000.0,0.00050958,120]
[320793560,1711560718432,-1000.0,0.00050958,120]
[320793561,1711560718462,-1000.0,0.00050958,120]
[320793562,1711560718491,-1000.0,0.00050958,120]
[320793563,1711560718519,-1000.0,0.00050958,120]
[320793564,1711560718549,-1000.0,0.00050958,120]
[320793565,1711560718578,-1000.0,0.00050958,120]
[320793566,1711560718609,-677.56255508,0.00050958,120]
[320793567,1711560718636,-610.5,0.00050958,60]
[320793568,1711560718667,-151.69962172,0.00050962,60]
[320793569,1711560718699,-4848.10637665,0.00050968,120]
[320793570,1711560718726,-157.18743014,0.00050986,60]
[320793571,1711560718756,-153.41033036,0.0005104,60]
[320793572,1711560718785,-153.41033036,0.00051056,60]
[320793573,1711560718813,-157.18743014,0.00051092,60]
[320793574,1711560718843,-2000.0,0.00051095,30]
[320793575,1711560718872,-1667.50820547,0.000511,30]
[320793576,1711560718897,-151.69962172,0.00051112,60]
[320793577,1711560718922,-4848.10637665,0.00051121,120]
[320793578,1711560718951,-152.6744574,0.00051162,49]
[320793579,1711560718980,-157.18743014,0.00051163,60]
[320793580,1711560719006,-154.98166736,0.00051194,60]
[320793581,1711560719031,-150.0,0.00051196,30]
[320793582,1711560719058,-157.18743014,0.00051199,60]
[320793583,1711560719087,-157.18743014,0.00051215,60]
[320793584,1711560719113,-157.20206273,0.00051233,60]
[320793585,1711560719140,-151.69962172,0.0005125,60]
[320793586,1711560719166,-154.93767154,0.00051264,60]
[320793587,1711560719191,-167.41909627,0.00051273,60]
[320793588,1711560719218,-4848.10637665,0.00051274,120]
[320793589,1711560719244,-318.86786748,0.0005129,60]
[320793590,1711560719269,-170.89924236,0.00051306,60]
[320793591,1711560719296,-157.20873733,0.00051347,60]
[320793592,1711560719322,-158.63652466,0.00051353,60]
[320793593,1711560719349,-158.63652466,0.00051362,60]
[320793594,1711560719375,-150.50617537,0.00051366,60]
[320793595,1711560719402,-2000.0,0.00051369,30]
[320793596,1711560719428,-157.18743014,0.00051383,60]
[320793597,1711560719453,-889.0,0.000514,30]
[320793598,1711560719480,-704.0,0.000514,30]
[320793599,1711560719507,-4848.10637665,0.00051426,120]
[320793600,1711560719537,-152.6744574,0.00051463,50]
[320793601,1711560719564,-500.0,0.00051505,90]
[320793602,1711560719591,-500.0,0.00051505,90]
[320793603,1711560719618,-610.5,0.00051506,60]
[320793604,1711560719649,-1225.0,0.00051521,120]
[320793605,1711560719677,-1046.0,0.00051521,120]
[320793606,1711560719703,-278.0,0.00051521,120]
[320793607,1711560719728,-802.0,0.00051521,120]
[320793608,1711560719754,-1267.0,0.00051521,120]
[320793609,1711560719779,-433.0,0.00051521,120]
[320793610,1711560719805,-604.0,0.00051521,120]
[320793611,1711560719832,-157.20206273,0.00051578,60]
[320793612,1711560719858,-4848.10637665,0.00051579,120]
[320793613,1711560719884,-318.86786748,0.00051601,60]
[320793614,1711560719910,-152.92274924,0.00051604,60]
[320793615,1711560719937,-2000.0,0.00051643,30]
[320793616,1711560719965,-157.20206273,0.00051663,60]
[320793617,1711560719992,-151.69962172,0.00051693,60]
[320793618,1711560720019,-150.0,0.00051709,120]
[320793619,1711560720049,-1461.0,0.00051709,120]
[320793620,1711560720076,-2959.0,0.00051709,120]
[320793621,1711560720102,-396.0,0.00051709,120]
[320793622,1711560720127,-1138.0,0.00051709,120]
[320793623,1711560720153,-2423.0,0.00051709,120]
[320793624,1711560720178,-1626.0,0.00051709,120]
[320793625,1711560720204,-192.0,0.00051709,120]
[320793626,1711560720232,-150.0,0.00051715,120]
[320793627,1711560720258,-500.0,0.0005172,120]
[320793628,1711560720287,-4848.10637665,0.00051732,120]
[320793629,1711560720316,-151.69962172,0.00051763,60]
[320793630,1711560720344,-152.6744574,0.00051764,51]
[320793631,1711560720371,-318.86786748,0.00051765,60]
[320793632,1711560720398,-318.86786748,0.00051784,60]
[320793633,1711560720424,-17591.0,0.000518,120]
[320793634,1711560720451,-157.20873733,0.00051839,60]
[320793635,1711560720477,-256.4229467,0.000519,30]
[320793636,1711560720504,-1207.03,0.00051917,30]
[320793637,1711560720531,-157.20873733,0.00051922,60]
[320793638,1711560721181,-2437.42170417,0.00052,120]
[320793639,1711560721214,-14274.46346578,0.00052,120]
[320793640,1711560721237,-5777.01161238,0.00052,120]
[320793641,1711560721260,-277.37372488,0.00052,30]
[320793642,1711560721283,-549.36,0.00052,120]
[320793643,1711560721306,-2000.0,0.00052,120]
[320793644,1711560721329,-3022.42991579,0.00052,120]
[320793645,1711560721352,-4999.99,0.00052,120]
[320793646,1711560721375,-4999.99,0.00052,120]
[320793647,1711560721398,-4999.99,0.00052,120]
[320793648,1711560721421,-4999.99,0.00052,120]
[320793649,1711560721444,-4999.99,0.00052,120]
[320793650,1711560721467,-4999.99,0.00052,120]
[320793651,1711560721490,-4999.99,0.00052,120]
[320793652,1711560721515,-4999.99,0.00052,120]
[320793653,1711560721539,-4999.99,0.00052,120]
[320793654,1711560721562,-4999.99,0.00052,120]
[320793655,1711560721586,-5000.0,0.00052,120]
[320793656,1711560721609,-29148.13710744,0.00052,30]
[320793657,1711560721632,-2200.0166858,0.00052,120]
[320793658,1711560721655,-176.04,0.00052,120]
[320793659,1711560721677,-5000.0,0.00052,120]
[320793660,1711560721699,-150.0,0.00052,30]
[320793661,1711560721722,-5000.0,0.00052,120]
[320793662,1711560721744,-5000.0,0.00052,120]
[320793663,1711560721767,-5000.0,0.00052,120]
[320793664,1711560721791,-5000.0,0.00052,120]
[320793665,1711560721813,-5000.0,0.00052,120]
[320793666,1711560721836,-840.0,0.00052044,120]
[320793667,1711560721858,-170.0,0.0005205,71]
[320793668,1711560721880,-500.0,0.00052053,90]
[320793669,1711560721902,-500.0,0.00052053,90]
[320793670,1711560721924,-3685.55096896,0.00052054,120]
[320793671,1711560721949,-610.5,0.00052054,60]
[320793672,1711560721972,-3000.0,0.00052054,120]
[320793673,1711560721995,-1513.74,0.00052054,120]
[320793674,1711560722017,-1000.0,0.00052054,60]
[320793675,1711560722041,-3448.32,0.00052054,120]
[320793676,1711560722064,-152.6744574,0.00052066,52]
[320793677,1711560722087,-154.1293337,0.00052087,60]
[320793678,1711560722110,-150.0,0.00052094,30]
[320793679,1711560722132,-5000.0,0.000521,120]
[320793680,1711560722155,-5000.0,0.000521,120]
[320793681,1711560722177,-150.50617537,0.000521,60]
[320793682,1711560722201,-5000.0,0.000521,120]
[320793683,1711560722225,-151.55112149,0.0005214,60]
[320793684,1711560722248,-3000.0,0.00052191,120]
[320793685,1711560722270,-150.50617537,0.00052198,60]
[320793686,1711560722292,-5000.0,0.000522,120]
[320793687,1711560722314,-414.06,0.000522,30]
[320793688,1711560722337,-154.1293337,0.0005223,60]
[320793689,1711560722359,-150.50617537,0.00052246,60]
[320793690,1711560722383,-157.20873733,0.00052279,60]
[320793691,1711560722407,-157.20206273,0.00052296,60]
[320793692,1711560722431,-5000.0,0.000523,120]
[320793693,1711560722455,-2775.92,0.00052328,120]
[320793694,1711560722479,-1513.74,0.00052328,120]
[320793695,1711560722514,-3448.32,0.00052328,120]
[320793696,1711560722538,-160.81730332,0.00052359,60]
[320793697,1711560722565,-152.6744574,0.00052367,53]
[320793698,1711560722589,-5000.0,0.000524,120]
[320793699,1711560722613,-4771.0,0.00052463,120]
[320793700,1711560722635,-1382.689,0.00052463,120]
[320793701,1711560722657,-1176.0,0.00052463,120]
[320793702,1711560722680,-2420.0,0.00052463,120]
[320793703,1711560722702,-5676.0,0.00052463,120]
[320793704,1711560722724,-458.0,0.00052463,120]
[320793705,1711560722750,-22457.772,0.00052463,120]
[320793706,1711560722771,-961.817,0.00052463,120]
[320793707,1711560722794,-2449.0,0.00052463,120]
[320793708,1711560722816,-1244.0,0.00052463,120]
[320793709,1711560722838,-537.0,0.00052463,120]
[320793710,1711560722861,-409.3,0.00052466,30]
[320793711,1711560722885,-924.51,0.00052466,30]
[320793712,1711560722907,-409.3,0.00052466,30]
[320793713,1711560722929,-924.51,0.00052466,30]
[320793714,1711560722950,-409.3,0.00052466,30]
[320793715,1711560722971,-924.51,0.00052466,30]
[320793716,1711560722993,-409.3,0.00052466,30]
[320793717,1711560723017,-924.51,0.00052466,30]
[320793718,1711560723043,-924.51,0.00052466,30]
[320793719,1711560723067,-409.3,0.00052466,30]
[320793720,1711560723090,-409.3,0.00052466,30]
[320793721,1711560723113,-924.51,0.00052466,30]
[320793722,1711560723137,-924.51,0.00052466,30]
[320793723,1711560723161,-409.3,0.00052466,30]
[320793724,1711560723184,-924.51,0.00052466,30]
[320793725,1711560723207,-409.3,0.00052466,30]
[320793726,1711560723230,-409.3,0.00052466,30]
[320793727,1711560723251,-924.51,0.00052466,30]
[320793728,1711560723274,-924.51,0.00052466,30]
[320793729,1711560723300,-409.3,0.00052466,30]
[320793730,1711560723323,-924.51,0.00052466,30]
[320793731,1711560723346,-409.3,0.00052466,30]
[320793732,1711560723368,-409.3,0.00052466,30]
[320793733,1711560723391,-409.3,0.00052466,30]
[320793734,1711560723416,-213.63,0.00052488,120]
[320793735,1711560723439,-2000.0,0.000525,120]
[320793736,1711560723462,-5000.0,0.000525,120]
[320793737,1711560723485,-201.22,0.000525,120]
[320793738,1711560723668,-201.22,0.000525,120]
[320793739,1711560723693,-201.22,0.000525,120]
[320793740,1711560723715,-201.22,0.000525,120]
[320793741,1711560723743,-201.22,0.000525,120]
[320793742,1711560723766,-201.22,0.000525,120]
[320793743,1711560723792,-201.22,0.000525,120]
[320793744,1711560723816,-201.22,0.000525,120]
[320793745,1711560723840,-201.22,0.000525,120]
[320793746,1711560723864,-201.22,0.000525,120]
[320793747,1711560723886,-201.22,0.000525,120]
[320793748,1711560723909,-201.22,0.000525,120]
[320793749,1711560723931,-201.22,0.000525,120]
[320793750,1711560723953,-201.22,0.000525,120]
[320793751,1711560723977,-201.22,0.000525,120]
[320793752,1711560724000,-201.22,0.000525,120]
[320793753,1711560724030,-201.22,0.000525,120]
[320793754,1711560724055,-201.22,0.000525,120]
[320793755,1711560724078,-201.22,0.000525,120]
[320793756,1711560724101,-201.22,0.000525,120]
[320793757,1711560724124,-201.22,0.000525,120]
[320793758,1711560724147,-201.22,0.000525,120]
[320793759,1711560724170,-201.22,0.000525,120]
[320793760,1711560724193,-201.22,0.000525,120]
[320793761,1711560724219,-201.22,0.000525,120]
[320793762,1711560724243,-201.22,0.000525,120]
[320793763,1711560724265,-201.22,0.000525,120]
[320793764,1711560724291,-201.22,0.000525,120]
[320793765,1711560724313,-201.22,0.000525,120]
[320793766,1711560724335,-201.22,0.000525,120]
[320793767,1711560724358,-201.22,0.000525,120]
[320793768,1711560724381,-201.22,0.000525,120]
[320793769,1711560724404,-201.22,0.000525,120]
[320793770,1711560724427,-201.22,0.000525,120]
[320793771,1711560724450,-201.22,0.000525,120]
[320793772,1711560724472,-201.22,0.000525,120]
[320793773,1711560724496,-201.22,0.000525,120]
[320793774,1711560724522,-201.22,0.000525,120]
[320793775,1711560724547,-201.22,0.000525,120]
[320793776,1711560724570,-201.22,0.000525,120]
[320793777,1711560724593,-201.22,0.000525,120]
[320793778,1711560724618,-201.22,0.000525,120]
[320793779,1711560724641,-201.22,0.000525,120]
[320793780,1711560724664,-201.22,0.000525,120]
[320793781,1711560724687,-201.22,0.000525,120]
[320793782,1711560724709,-201.22,0.000525,120]
[320793783,1711560724733,-201.22,0.000525,120]
[320793784,1711560724756,-201.22,0.000525,120]
[320793785,1711560724779,-201.22,0.000525,120]
[320793786,1711560724803,-201.22,0.000525,120]
[320793787,1711560724826,-201.22,0.000525,120]
[320793788,1711560724849,-201.22,0.000525,120]
[320793789,1711560724871,-201.22,0.000525,120]
[320793790,1711560724894,-201.22,0.000525,120]
[320793791,1711560724917,-201.22,0.000525,120]
[320793792,1711560724941,-201.22,0.000525,120]
[320793793,1711560724964,-201.22,0.000525,120]
[320793794,1711560724987,-201.22,0.000525,120]
[320793795,1711560725011,-201.22,0.000525,120]
[320793796,1711560725037,-201.22,0.000525,120]
[320793797,1711560725074,-201.22,0.000525,120]
[320793798,1711560725098,-201.22,0.000525,120]
[320793799,1711560725122,-201.22,0.000525,120]
[320793800,1711560725145,-201.22,0.000525,120]
[320793801,1711560725169,-201.22,0.000525,120]
[320793802,1711560725197,-201.22,0.000525,120]
[320793803,1711560725221,-201.22,0.000525,120]
[320793804,1711560725245,-201.22,0.000525,120]
[320793805,1711560725268,-201.22,0.000525,120]
[320793806,1711560725294,-201.22,0.000525,120]
[320793807,1711560725318,-201.22,0.000525,120]
[320793808,1711560725346,-201.22,0.000525,120]
[320793809,1711560725375,-201.22,0.000525,120]
[320793810,1711560725402,-201.22,0.000525,120]
[320793811,1711560725426,-201.22,0.000525,120]
[320793812,1711560725454,-201.22,0.000525,120]
[320793813,1711560725481,-201.22,0.000525,120]
[320793814,1711560725506,-201.22,0.000525,120]
[320793815,1711560725530,-201.22,0.000525,120]
[320793816,1711560725558,-201.22,0.000525,120]
[320793817,1711560725584,-201.22,0.000525,120]
[320793818,1711560725609,-201.22,0.000525,120]
[320793819,1711560725634,-201.22,0.000525,120]
[320793820,1711560725659,-201.22,0.000525,120]
[320793821,1711560725685,-201.22,0.000525,120]
[320793822,1711560725710,-201.22,0.000525,120]
[320793823,1711560725735,-201.22,0.000525,120]
[320793824,1711560725759,-201.22,0.000525,120]
[320793825,1711560725784,-201.22,0.000525,120]
[320793826,1711560725811,-201.22,0.000525,120]
[320793827,1711560725836,-201.22,0.000525,120]
[320793828,1711560725861,-201.22,0.000525,120]
[320793829,1711560725885,-201.22,0.000525,120]
[320793830,1711560725909,-201.22,0.000525,120]
[320793831,1711560725933,-201.22,0.000525,120]
[320793832,1711560725958,-201.22,0.000525,120]
[320793833,1711560725984,-201.22,0.000525,120]
[320793834,1711560726009,-201.22,0.000525,120]
[320793835,1711560726034,-201.22,0.000525,120]
[320793836,1711560726059,-201.22,0.000525,120]
[320793837,1711560726083,-150.50617537,0.00052512,60]
[320793838,1711560726108,-318.86786748,0.00052532,60]
[320793839,1711560726318,-150.0,0.00052542,120]
[320793840,1711560726356,-150.50617537,0.00052554,60]
[320793841,1711560726382,-318.86786748,0.00052573,60]
[320793842,1711560726409,-522.0,0.00052576,120]
[320793843,1711560726435,-537.0,0.00052576,120]
[320793844,1711560726462,-558.0,0.00052576,120]
[320793845,1711560726490,-414.06,0.000526,30]
[320793846,1711560726518,-500.0,0.00052601,90]
[320793847,1711560726546,-500.0,0.00052601,90]
[320793848,1711560726572,-610.5,0.00052602,60]
[320793849,1711560726599,-1513.74,0.00052602,120]
[320793850,1711560726626,-3448.32,0.00052602,120]
[320793851,1711560726652,-409.3,0.0005263,30]
[320793852,1711560726678,-409.3,0.0005263,30]
[320793853,1711560726704,-924.51,0.0005263,30]
[320793854,1711560726730,-409.3,0.0005263,30]
[320793855,1711560726758,-817.34,0.0005263,30]
[320793856,1711560726784,-924.51,0.0005263,30]
[320793857,1711560726812,-924.51,0.0005263,30]
[320793858,1711560726837,-924.51,0.0005263,30]
[320793859,1711560726864,-154.5788021,0.0005264,60]
[320793860,1711560726889,-150.50617537,0.0005265,60]
[320793861,1711560726915,-152.6744574,0.00052668,54]
[320793862,1711560726940,-409.3,0.0005274,30]
[320793863,1711560726965,-924.51,0.0005274,30]
[320793864,1711560726990,-924.51,0.0005274,30]
[320793865,1711560727014,-409.3,0.0005274,30]
[320793866,1711560727038,-924.51,0.0005274,30]
[320793867,1711560727063,-924.51,0.0005274,30]
[320793868,1711560727086,-150.50617537,0.00052754,60]
[320793869,1711560727110,-2155.6451692,0.00052795,120]
[320793870,1711560727137,-5978.99850768,0.00052808,30]
[320793871,1711560727163,-157.20206273,0.0005282,60]
[320793872,1711560727187,-522.0,0.00052849,120]
[320793873,1711560727214,-537.0,0.00052849,120]
[320793874,1711560727238,-558.0,0.00052849,120]
[320793875,1711560727263,-155.78,0.00052867,60]
[320793876,1711560727287,-1513.74,0.00052876,120]
[320793877,1711560727312,-2319.97,0.00052876,120]
[320793878,1711560727337,-3448.32,0.00052876,120]
[320793879,1711560727362,-836.58,0.00052877,30]
[320793880,1711560727386,-517.72,0.00052877,30]
[320793881,1711560727409,-246.96,0.00052877,30]
[320793882,1711560727433,-303.9,0.00052877,30]
[320793883,1711560727457,-161.39,0.00052877,30]
[320793884,1711560727481,-150.0,0.00052877,30]
[320793885,1711560727508,-347.44,0.00052877,30]
[320793886,1711560727532,-150.99,0.00052877,30]
[320793887,1711560727559,-186.95,0.00052877,60]
[320793888,1711560727584,-161.39,0.00052877,30]
[320793889,1711560727609,-517.72,0.00052877,30]
[320793890,1711560727634,-150.0,0.00052877,30]
[320793891,1711560727659,-347.44,0.00052877,30]
[320793892,1711560727686,-150.0,0.00052877,30]
[320793893,1711560727713,-150.0,0.00052877,30]
[320793894,1711560727738,-150.0,0.00052877,30]
[320793895,1711560727766,-347.44,0.00052877,30]
[320793896,1711560727790,-517.72,0.00052877,30]
[320793897,1711560727816,-161.39,0.00052877,30]
[320793898,1711560727840,-517.72,0.00052877,30]
[320793899,1711560727865,-347.44,0.00052877,30]
[320793900,1711560727889,-161.39,0.00052877,30]
[320793901,1711560727913,-150.0,0.00052877,30]
[320793902,1711560727936,-150.0,0.00052877,30]
[320793903,1711560727960,-150.0,0.00052877,30]
[320793904,1711560727983,-150.0,0.00052877,30]
[320793905,1711560728013,-161.39,0.00052877,30]
[320793906,1711560728040,-517.72,0.00052877,30]
[320793907,1711560728066,-347.44,0.00052877,30]
[320793908,1711560728090,-161.39,0.00052877,30]
[320793909,1711560728114,-692.92,0.00052877,30]
[320793910,1711560728137,-517.72,0.00052877,30]
[320793911,1711560728161,-150.0,0.00052877,30]
[320793912,1711560728186,-517.72,0.00052877,30]
[320793913,1711560728210,-150.0,0.00052877,30]
[320793914,1711560728234,-161.39,0.00052877,30]
[320793915,1711560728258,-517.72,0.00052877,30]
[320793916,1711560728284,-161.39,0.00052877,30]
[320793917,1711560728308,-150.0,0.00052877,30]
[320793918,1711560728334,-517.72,0.00052877,30]
[320793919,1711560728358,-161.39,0.00052877,30]
[320793920,1711560728382,-150.0,0.00052877,30]
[320793921,1711560728407,-517.72,0.00052877,30]
[320793922,1711560728432,-150.0,0.00052877,30]
[320793923,1711560728456,-150.0,0.00052877,30]
[320793924,1711560728481,-517.72,0.00052877,30]
[320793925,1711560728508,-517.72,0.00052877,30]
[320793926,1711560728532,-150.0,0.00052877,30]
[320793927,1711560728558,-517.72,0.00052877,30]
[320793928,1711560728585,-150.0,0.00052877,30]
[320793929,1711560728610,-517.72,0.00052877,30]
[320793930,1711560728634,-150.0,0.00052877,30]
[320793931,1711560728659,-517.72,0.00052877,30]
[320793932,1711560728683,-150.0,0.00052877,30]
[320793933,1711560728707,-1027.52,0.00052877,30]
[320793934,1711560728731,-385.65,0.00052877,30]
[320793935,1711560728754,-151.968571,0.00052877,120]
[320793936,1711560728777,-151.0,0.00052877,120]
[320793937,1711560728801,-150.0,0.00052895,60]
[320793938,1711560728824,-346750.36850031,0.00052896,31]
[320793939,1711560728848,-151.0,0.00052896,120]
[320793940,1711560728871,-151.0,0.00052896,120]
[320793941,1711560728894,-151.0,0.00052896,120]
[320793942,1711560728916,-151.0,0.00052896,120]
[320793943,1711560728939,-151.0,0.00052896,120]
[320793944,1711560729170,-151.0,0.00052896,120]
[320793945,1711560729194,-151.0,0.00052896,120]
[320793946,1711560729223,-204.288628,0.00052896,120]
[320793947,1711560729247,-204.288628,0.00052896,120]
[320793948,1711560729271,-301.942585,0.00052896,120]
[320793949,1711560729296,-151.0,0.00052896,120]
[320793950,1711560729321,-191.520487,0.00052896,120]
[320793951,1711560729345,-191.520487,0.00052896,120]
[320793952,1711560729370,-250.635261,0.00052896,120]
[320793953,1711560729395,-240.242065,0.00052896,120]
[320793954,1711560729419,-250.635261,0.00052896,120]
[320793955,1711560729443,-240.242065,0.00052896,120]
[320793956,1711560729468,-151.0,0.00052896,120]
[320793957,1711560729492,-151.576563,0.00052896,120]
[320793958,1711560729725,-151.576563,0.00052896,120]
[320793959,1711560729749,-151.0,0.00052896,120]
[320793960,1711560729772,-151.0,0.00052896,120]
[320793961,1711560729795,-151.0,0.00052896,120]
[320793962,1711560729819,-342.284432,0.00052896,120]
[320793963,1711560729842,-151.0,0.00052896,60]
[320793964,1711560729866,-342.284432,0.00052896,120]
[320793965,1711560729888,-151.0,0.00052896,60]
[320793966,1711560729912,-151.0,0.00052896,60]
[320793967,1711560729935,-151.0,0.00052896,120]
[320793968,1711560729958,-152.141664,0.00052896,120]
[320793969,1711560729983,-151.0,0.00052896,120]
[320793970,1711560730007,-151.0,0.00052896,120]
[320793971,1711560730033,-151.0,0.00052896,120]
[320793972,1711560730057,-151.0,0.00052896,120]
[320793973,1711560730082,-151.0,0.00052896,120]
[320793974,1711560730106,-151.0,0.00052896,120]
[320793975,1711560730132,-151.0,0.00052896,120]
[320793976,1711560730155,-151.0,0.00052896,120]
[320793977,1711560730179,-151.0,0.00052896,120]
[320793978,1711560730204,-151.0,0.00052896,120]
[320793979,1711560730228,-151.0,0.00052896,120]
[320793980,1711560730253,-151.0,0.00052896,120]
[320793981,1711560730278,-151.0,0.00052896,120]
[320793982,1711560730301,-151.0,0.00052896,120]
[320793983,1711560730325,-151.0,0.00052896,120]
[320793984,1711560730349,-151.0,0.00052896,120]
[320793985,1711560730372,-151.0,0.00052896,120]
[320793986,1711560730396,-151.0,0.00052896,120]
[320793987,1711560730420,-151.0,0.00052896,120]
[320793988,1711560730443,-151.0,0.00052896,120]
[320793989,1711560730467,-151.0,0.00052896,120]
[320793990,1711560730489,-151.0,0.00052896,120]
[320793991,1711560730515,-151.0,0.00052896,120]
[320793992,1711560730538,-227.95035,0.00052896,120]
[320793993,1711560730564,-151.0,0.00052896,30]
[320793994,1711560730593,-151.0,0.00052896,120]
[320793995,1711560730618,-151.0,0.00052896,120]
[320793996,1711560730641,-228.979437,0.00052896,120]
[320793997,1711560730666,-151.0,0.00052896,120]
[320793998,1711560730690,-455.76636,0.00052896,120]
[320793999,1711560730713,-151.0,0.00052896,120]
[320794000,1711560730735,-151.0,0.00052896,120]
[320794001,1711560730761,-455.76636,0.00052896,120]
[320794002,1711560730784,-151.0,0.00052896,120]
[320794003,1711560730808,-151.0,0.00052896,120]
[320794004,1711560730834,-302.296389,0.00052896,120]
[320794005,1711560730857,-302.296389,0.00052896,120]
[320794006,1711560730881,-151.0,0.00052896,120]
[320794007,1711560730905,-151.0,0.00052896,30]
[320794008,1711560730932,-151.0,0.00052896,30]
[320794009,1711560730956,-12395.85319088,0.000529,30]
[320794010,1711560730979,-149999.0,0.000529,30]
[320794011,1711560731003,-151.0,0.000529,120]
[320794012,1711560731026,-151.0,0.000529,120]
[320794013,1711560731050,-151.0,0.000529,120]
[320794014,1711560731073,-151.0,0.000529,120]
[320794015,1711560731096,-151.0,0.000529,120]
[320794016,1711560731119,-151.0,0.000529,120]
[320794017,1711560731142,-151.0,0.000529,120]
[320794018,1711560731165,-151.0,0.000529,120]
[320794019,1711560731187,-181.879668,0.000529,120]
[320794020,1711560731210,-151.0,0.000529,120]
[320794021,1711560731233,-151.0,0.000529,120]
[320794022,1711560731256,-151.0,0.000529,120]
[320794023,1711560731277,-151.0,0.000529,120]
[320794024,1711560731301,-204.288628,0.000529,120]
[320794025,1711560731323,-204.288628,0.000529,120]
[320794026,1711560731345,-151.0,0.000529,120]
[320794027,1711560731368,-191.520487,0.000529,120]
[320794028,1711560731391,-191.520487,0.000529,120]
[320794029,1711560731414,-250.635261,0.000529,120]
[320794030,1711560731436,-240.242065,0.000529,120]
[320794031,1711560731459,-250.635261,0.000529,120]
[320794032,1711560731482,-240.242065,0.000529,120]
[320794033,1711560731508,-151.576563,0.000529,120]
[320794034,1711560731530,-151.576563,0.000529,120]
[320794035,1711560731554,-151.0,0.000529,120]
[320794036,1711560731576,-252.288334,0.000529,120]
[320794037,1711560731602,-342.284432,0.000529,120]
[320794038,1711560731625,-151.0,0.000529,60]
[320794039,1711560731647,-342.284432,0.000529,120]
[320794040,1711560731669,-151.0,0.000529,60]
[320794041,1711560731692,-151.0,0.000529,60]
[320794042,1711560731714,-151.0,0.000529,120]
[320794043,1711560731736,-151.0,0.000529,120]
[320794044,1711560731758,-151.0,0.000529,120]
[320794045,1711560731781,-151.0,0.000529,120]
[320794046,1711560731804,-249.38377,0.000529,120]
[320794047,1711560731828,-151.0,0.000529,120]
[320794048,1711560731850,-151.0,0.000529,120]
[320794049,1711560732042,-151.0,0.000529,120]
[320794050,1711560732066,-151.0,0.000529,120]
[320794051,1711560732089,-151.0,0.000529,120]
[320794052,1711560732111,-151.0,0.000529,120]
[320794053,1711560732135,-151.0,0.000529,120]
[320794054,1711560732158,-151.0,0.000529,120]